bitfinex/quotes_BTCUSD_20251031
["timestamp","ask_amount","ask_price","bid_price","bid_amount"]
[1761872261352,2.7477794,109740.0,109730.0,0.0004811]
[1761872261563,2.7477794,109740.0,109730.0,0.00042466]
[1761872262864,2.12073002,109740.0,109730.0,0.04696466]
[1761872263017,0.30297897,109740.0,109730.0,0.01944521]
[1761872263220,0.30297897,109740.0,109730.0,0.00042466]
[1761872264637,0.29797897,109740.0,109730.0,0.00042466]
[1761872264843,0.7477794,109740.0,109730.0,0.00042466]
[1761872265340,0.7477794,109740.0,109730.0,0.02771251]
[1761872266900,2.7477794,109740.0,109730.0,0.02771251]
[1761872267308,2.7477794,109740.0,109730.0,0.04418616]
[1761872268154,2.7477794,109740.0,109730.0,0.06807192]
[1761872268730,0.29413897,109740.0,109730.0,0.15789093]
[1761872268943,0.7439394,109740.0,109730.0,0.15789093]
[1761872269164,0.7439394,109740.0,109730.0,0.21374619]
[1761872269571,0.22719897,109740.0,109730.0,0.22568132]
[1761872269767,0.22719897,109740.0,109730.0,0.22791619]
[1761872269970,0.29413897,109740.0,109730.0,0.22791619]
[1761872270165,0.29413897,109740.0,109730.0,0.19607004]
[1761872270364,0.29413897,109740.0,109730.0,0.18190004]
[1761872270560,2.29413897,109740.0,109730.0,0.21391635]
[1761872270957,2.7439394,109740.0,109730.0,0.21391635]
[1761872271158,2.7439394,109740.0,109730.0,0.18190004]
[1761872271363,2.7439394,109740.0,109730.0,0.12412605]
[1761872271550,2.7439394,109740.0,109730.0,0.10026598]
[1761872271749,2.55840711,109740.0,109730.0,0.06822096]
[1761872272026,2.74065606,109740.0,109730.0,0.06822096]
[1761872272209,2.74065606,109740.0,109730.0,0.10026598]
[1761872272556,2.74065606,109740.0,109730.0,0.06822096]
[1761872272760,2.74065606,109740.0,109730.0,0.04418616]
[1761872273171,2.74065606,109740.0,109730.0,0.06822096]
[1761872273571,0.21844784,109730.0,109720.0,1e-08]
[1761872273771,0.21844784,109730.0,109720.0,0.0004816]
[1761872273772,2.81371827,109730.0,109720.0,0.0004816]
[1761872273977,2.90353728,109730.0,109720.0,0.0004816]
[1761872274191,3.25353727,109730.0,109720.0,0.0004816]
[1761872274792,2.77753599,109730.0,109720.0,0.0004816]
[1761872275841,2.7542638,109730.0,109720.0,0.0004816]
[1761872276434,2.30446337,109730.0,109720.0,0.0004816]
[1761872276753,2.7542638,109730.0,109720.0,0.0004816]
[1761872277999,2.30446337,109730.0,109720.0,0.0004816]
[1761872278135,2.7542638,109730.0,109720.0,0.0004816]
[1761872278704,2.79044608,109730.0,109720.0,0.0004816]
[1761872279081,2.79044608,109730.0,109720.0,0.00130933]
[1761872279643,3.33006552,109730.0,109720.0,0.00130933]
[1761872280189,0.1823154,109700.0,109690.0,0.03204502]
[1761872280397,0.71064583,109700.0,109690.0,0.00048162]
[1761872280601,2.77758583,109700.0,109690.0,0.00048162]
[1761872281844,2.3277854,109700.0,109690.0,0.00048162]
[1761872282021,2.77758583,109700.0,109690.0,0.00048162]
[1761872282227,2.3277854,109700.0,109690.0,0.00048162]
[1761872282435,0.77758583,109700.0,109690.0,0.00048162]
[1761872282851,0.2608454,109700.0,109690.0,0.04614162]
[1761872283058,0.21548306,109710.0,109690.0,0.20438063]
[1761872283259,0.1823154,109700.0,109690.0,0.19076565]
[1761872283729,0.1823154,109700.0,109690.0,0.23642565]
[1761872284821,0.1823154,109700.0,109690.0,0.16800565]
[1761872285049,0.1823154,109700.0,109690.0,0.23642565]
[1761872285246,0.74441583,109700.0,109690.0,0.09030063]
[1761872285443,0.2946154,109700.0,109690.0,0.09030063]
[1761872285676,0.74441583,109700.0,109690.0,0.12301247]
[1761872285872,0.67747583,109700.0,109690.0,0.16867247]
[1761872286293,0.67747583,109700.0,109690.0,0.12301247]
[1761872286523,0.2276754,109700.0,109690.0,0.16867247]
[1761872286859,0.67747583,109700.0,109690.0,0.16867247]
[1761872287507,0.67747583,109700.0,109690.0,0.12301247]
[1761872287508,0.2946154,109700.0,109690.0,0.12301247]
[1761872287648,0.74441583,109700.0,109690.0,0.12301247]
[1761872287848,2.74441583,109700.0,109690.0,0.12301247]
[1761872288069,2.74441583,109700.0,109690.0,0.09096745]
[1761872289210,2.74441583,109700.0,109690.0,0.12301247]
[1761872290241,2.74441583,109700.0,109690.0,0.13662745]
[1761872290491,0.1823154,109700.0,109690.0,0.23709247]
[1761872290731,0.1823154,109700.0,109690.0,0.28498734]
[1761872294483,0.1823154,109700.0,109690.0,0.16867247]
[1761872294484,0.2269954,109700.0,109690.0,0.16867247]
[1761872294867,0.98253228,109700.0,109690.0,0.12301247]
[1761872295318,0.2918154,109700.0,109690.0,0.12301247]
[1761872296089,0.2918154,109700.0,109690.0,0.09096745]
[1761872297375,3.07235129,109700.0,109690.0,0.00114844]
[1761872297505,2.98253228,109700.0,109690.0,0.00114844]
[1761872298270,3.10853357,109700.0,109690.0,1e-08]
[1761872299133,3.46853355,109700.0,109690.0,1e-08]
[1761872299313,3.65440256,109700.0,109690.0,1e-08]
[1761872301114,3.67925476,109700.0,109690.0,1e-08]
[1761872301317,3.67825476,109700.0,109690.0,1e-08]
[1761872301525,3.67925476,109700.0,109690.0,1e-08]
[1761872302082,3.7027465,109700.0,109690.0,1e-08]
[1761872302484,3.71982941,109700.0,109690.0,1e-08]
[1761872303519,3.71882941,109700.0,109690.0,1e-08]
[1761872303986,3.71982941,109700.0,109690.0,1e-08]
[1761872304289,3.71882941,109700.0,109690.0,1e-08]
[1761872305052,3.71982941,109700.0,109690.0,1e-08]
[1761872305476,4.42054628,109700.0,109690.0,1e-08]
[1761872306321,2.18243181,109630.0,109620.0,0.00838487]
[1761872306445,0.93169869,109630.0,109620.0,0.0088667]
[1761872306650,0.24098181,109630.0,109620.0,0.14328571]
[1761872310184,0.24098181,109630.0,109620.0,0.09328571]
[1761872310617,0.18243181,109630.0,109620.0,0.15525571]
[1761872311345,0.32060181,109630.0,109620.0,0.04868571]
[1761872312076,0.32060181,109630.0,109620.0,0.05024282]
[1761872316233,0.32060181,109630.0,109620.0,0.00155711]
[1761872316424,3.01131869,109630.0,109620.0,0.00155711]
[1761872317791,3.01131869,109630.0,109620.0,1e-08]
[1761872317792,3.1011377,109630.0,109620.0,1e-08]
[1761872317980,3.13731998,109630.0,109620.0,1e-08]
[1761872318175,3.04750097,109630.0,109620.0,1e-08]
[1761872318648,3.13731998,109630.0,109620.0,1e-08]
[1761872319808,3.16117218,109630.0,109620.0,1e-08]
[1761872321104,3.51117217,109630.0,109620.0,1e-08]
[1761872321302,3.48731997,109630.0,109620.0,1e-08]
[1761872321526,3.57713898,109630.0,109620.0,1e-08]
[1761872322311,3.56713899,109630.0,109620.0,1e-08]
[1761872322522,3.57713898,109630.0,109620.0,1e-08]
[1761872322968,3.61099117,109630.0,109620.0,1e-08]
[1761872323185,3.63448291,109630.0,109620.0,1e-08]
[1761872323346,3.6514373,109630.0,109620.0,1e-08]
[1761872323783,3.7474873,109630.0,109620.0,1e-08]
[1761872324188,3.7484873,109630.0,109620.0,1e-08]
[1761872324366,3.7484873,109630.0,109590.0,1e-08]
[1761872324367,2.27937403,109600.0,109590.0,1e-08]
[1761872324568,2.27937403,109600.0,109560.0,0.01417]
[1761872324569,0.18253171,109570.0,109560.0,0.01417]
[1761872324792,0.22525171,109570.0,109560.0,0.14730143]
[1761872324950,0.25788171,109570.0,109560.0,0.14730143]
[1761872325344,0.32060171,109570.0,109560.0,0.09030143]
[1761872325746,0.32060171,109570.0,109560.0,0.00048242]
[1761872327217,3.01131859,109570.0,109560.0,0.00048242]
[1761872327687,3.1011376,109570.0,109560.0,0.00048242]
[1761872328310,3.13731988,109570.0,109560.0,0.00048242]
[1761872328710,3.04750087,109570.0,109560.0,0.00048242]
[1761872329302,3.13731988,109570.0,109560.0,1e-08]
[1761872329656,2.32060171,109570.0,109560.0,1e-08]
[1761872329868,3.01131859,109570.0,109560.0,1e-08]
[1761872335147,3.01131859,109570.0,109560.0,0.00133584]
[1761872335345,3.1011376,109570.0,109560.0,0.00133584]
[1761872336965,3.22713889,109570.0,109560.0,0.00133584]
[1761872339770,2.93399641,109570.0,109560.0,0.00133584]
[1761872339977,3.11652812,109570.0,109560.0,0.00133584]
[1761872341156,3.11652812,109570.0,109560.0,1e-08]
[1761872341358,2.21873065,109560.0,109550.0,1e-08]
[1761872341569,3.10470654,109560.0,109550.0,1e-08]
[1761872341760,2.50380867,109560.0,109550.0,1e-08]
[1761872342305,2.87125353,109560.0,109550.0,1e-08]
[1761872342661,2.78143452,109560.0,109550.0,1e-08]
[1761872343935,2.80844339,109560.0,109550.0,1e-08]
[1761872344086,2.83229559,109560.0,109550.0,1e-08]
[1761872345708,0.04272,109530.0,109480.0,0.05281098]
[1761872345919,0.25801508,109490.0,109480.0,0.00888205]
[1761872346144,0.25801508,109490.0,109480.0,0.10127205]
[1761872346145,0.18266508,109490.0,109480.0,0.10127205]
[1761872346345,0.18266508,109490.0,109480.0,0.14410205]
[1761872347783,0.18266508,109490.0,109480.0,0.23392106]
[1761872348144,0.18266508,109490.0,109480.0,0.01066494]
[1761872348145,1.01145196,109490.0,109480.0,0.01066494]
[1761872348335,3.01145196,109490.0,109480.0,0.01066494]
[1761872348536,2.96975443,109490.0,109480.0,0.01066494]
[1761872349156,2.27903755,109490.0,109480.0,0.01066494]
[1761872349527,2.27903755,109490.0,109480.0,0.04509651]
[1761872349528,0.22538508,109490.0,109480.0,0.04509651]
[1761872349654,0.32073508,109490.0,109480.0,0.00226651]
[1761872349856,0.25801508,109490.0,109480.0,0.04509651]
[1761872351336,0.70940607,109490.0,109480.0,0.04509651]
[1761872352773,0.70940607,109490.0,109480.0,0.00226651]
[1761872353026,0.70940607,109490.0,109480.0,0.04509651]
[1761872353153,2.70940607,109490.0,109480.0,0.00226651]
[1761872353362,2.70940607,109490.0,109480.0,0.04509651]
[1761872353796,2.0,109470.0,109450.0,0.02745871]
[1761872353990,0.18274853,109440.0,109430.0,0.08814]
[1761872354196,0.18273184,109450.0,109440.0,0.05757]
[1761872354396,0.19188176,109460.0,109440.0,0.63809]
[1761872354603,0.19188176,109460.0,109450.0,0.16041901]
[1761872354796,0.19188176,109460.0,109450.0,0.21798901]
[1761872356230,0.19234897,109470.0,109450.0,0.21798901]
[1761872356466,0.19234897,109470.0,109460.0,0.10093]
[1761872356790,0.19234897,109470.0,109460.0,0.19074901]
[1761872359015,0.19234897,109470.0,109460.0,0.21820772]
[1761872359155,0.19234897,109470.0,109460.0,0.19074901]
[1761872359353,0.19234897,109470.0,109460.0,0.19119497]
[1761872359596,0.00048221,109470.0,109460.0,0.64258596]
[1761872359803,0.00048221,109470.0,109460.0,0.98258596]
[1761872360146,0.19265837,109500.0,109460.0,1.01463098]
[1761872360346,0.00996238,109500.0,109490.0,0.06789]
[1761872360547,0.00082996,109500.0,109490.0,0.15770901]
[1761872360754,0.00082996,109500.0,109490.0,0.55982901]
[1761872360955,0.18347836,109500.0,109490.0,0.55982901]
[1761872361180,0.18347836,109500.0,109490.0,0.58727837]
[1761872361365,0.00082996,109500.0,109490.0,0.58727837]
[1761872361935,0.00082996,109500.0,109490.0,1.03966936]
[1761872364649,0.00082996,109500.0,109490.0,1.03866936]
[1761872364849,0.18263336,109510.0,109500.0,0.10093]
[1761872364850,0.16675168,109510.0,109500.0,0.10093]
[1761872365050,0.16675168,109510.0,109500.0,0.19074901]
[1761872365884,0.68991267,109510.0,109500.0,0.03881]
[1761872366082,0.69013552,109510.0,109500.0,0.03885807]
[1761872367017,0.69013552,109510.0,109500.0,4.807e-05]
[1761872367160,0.75041552,109510.0,109500.0,4.807e-05]
[1761872367780,0.7865978,109510.0,109500.0,4.807e-05]
[1761872368181,2.7865978,109510.0,109500.0,4.807e-05]
[1761872372062,0.77138191,109510.0,109500.0,4.807e-05]
[1761872372417,0.18285621,109510.0,109500.0,0.03885807]
[1761872372620,0.18285621,109510.0,109500.0,0.10097807]
[1761872374143,0.22380621,109510.0,109500.0,0.03885807]
[1761872374884,0.22380621,109510.0,109500.0,4.807e-05]
[1761872375128,0.22380621,109510.0,109500.0,0.03885807]
[1761872376424,0.7354772,109510.0,109500.0,4.807e-05]
[1761872377040,2.7354772,109510.0,109500.0,4.807e-05]
[1761872378175,2.77165948,109510.0,109500.0,4.807e-05]
[1761872379083,2.86147849,109510.0,109500.0,4.807e-05]
[1761872379304,2.9512975,109510.0,109500.0,4.807e-05]
[1761872380446,2.86147849,109510.0,109500.0,4.807e-05]
[1761872381814,2.95752849,109510.0,109500.0,4.807e-05]
[1761872381993,2.86147849,109510.0,109500.0,4.807e-05]
[1761872384111,3.30752848,109510.0,109500.0,4.807e-05]
[1761872385122,3.31752847,109510.0,109500.0,4.807e-05]
[1761872385326,3.40734748,109510.0,109500.0,4.807e-05]
[1761872385667,3.17895965,109510.0,109500.0,4.807e-05]
[1761872385869,3.35159302,109510.0,109500.0,4.807e-05]
[1761872385988,3.36159301,109510.0,109500.0,4.807e-05]
[1761872387460,0.63408944,109470.0,109460.0,0.02427793]
[1761872387659,1.06991172,109470.0,109460.0,0.02432601]
[1761872387890,1.11941172,109470.0,109460.0,0.02499488]
[1761872389268,0.18269845,109470.0,109460.0,0.09917695]
[1761872389461,0.18269845,109470.0,109460.0,0.12345488]
[1761872395313,0.18269845,109470.0,109460.0,0.24531891]
[1761872395517,0.18269845,109470.0,109460.0,0.22104098]
[1761872395796,0.18269616,109480.0,109460.0,0.26893585]
[1761872395980,0.18269845,109470.0,109460.0,0.50980698]
[1761872396334,0.18269845,109470.0,109460.0,0.54733698]
[1761872396538,0.18269845,109470.0,109460.0,0.60826698]
[1761872397474,0.18269845,109470.0,109460.0,0.57622196]
[1761872398333,0.18269845,109470.0,109460.0,0.60368026]
[1761872399093,0.18269616,109480.0,109460.0,0.60368026]
[1761872399319,0.18269845,109470.0,109460.0,0.41540125]
[1761872399679,0.18269845,109470.0,109460.0,0.45293125]
[1761872399890,0.19221047,109490.0,109470.0,0.34]
[1761872399891,0.18304996,109490.0,109470.0,0.34]
[1761872400093,0.00038424,109490.0,109480.0,0.09928416]
[1761872400297,0.00038424,109490.0,109480.0,0.26830134]
[1761872400496,0.00038424,109490.0,109480.0,0.27748572]
[1761872400697,0.18304932,109490.0,109480.0,0.27748572]
[1761872400939,0.00038424,109490.0,109480.0,0.72812552]
[1761872401148,0.00038424,109490.0,109480.0,1.06912552]
[1761872401357,0.00038424,109490.0,109480.0,1.11782176]
[1761872401551,0.00038424,109490.0,109480.0,1.0853576]
[1761872401971,0.00038424,109490.0,109480.0,1.71943035]
[1761872402348,0.00038424,109490.0,109480.0,1.0853576]
[1761872402554,0.00038424,109490.0,109480.0,0.63396661]
[1761872402757,0.18304932,109490.0,109480.0,0.29794926]
[1761872402955,0.18304932,109490.0,109480.0,0.24925302]
[1761872403367,0.18304932,109490.0,109480.0,0.21681782]
[1761872403708,0.15804932,109490.0,109480.0,0.21681782]
[1761872406162,0.21768932,109490.0,109480.0,0.06606881]
[1761872407123,0.66908031,109490.0,109480.0,0.06606881]
[1761872407317,0.18268176,109480.0,109470.0,0.09066586]
[1761872407519,0.18268176,109480.0,109470.0,0.06726586]
[1761872407520,0.22364176,109480.0,109470.0,0.06726586]
[1761872407820,0.67503275,109480.0,109470.0,0.00044586]
[1761872408089,2.76146503,109480.0,109470.0,0.00044586]
[1761872408578,2.85128404,109480.0,109470.0,0.00044586]
[1761872408774,3.28110305,109480.0,109470.0,0.00044586]
[1761872409130,3.19128404,109480.0,109470.0,0.00044586]
[1761872409572,3.20072325,109480.0,109470.0,0.00044586]
[1761872409767,3.19128404,109480.0,109470.0,0.00044586]
[1761872409972,3.10146503,109480.0,109470.0,0.00044586]
[1761872410936,3.11097021,109480.0,109470.0,0.00044586]
[1761872412421,3.20078922,109480.0,109470.0,0.00044586]
[1761872413399,3.44331851,109480.0,109470.0,1e-08]
[1761872413611,3.47108584,109480.0,109470.0,1e-08]
[1761872413800,3.48108583,109480.0,109470.0,1e-08]
[1761872414917,3.49817143,109480.0,109470.0,1e-08]
[1761872415078,3.58799044,109480.0,109470.0,1e-08]
[1761872415939,3.59799043,109480.0,109470.0,1e-08]
[1761872416774,3.61848196,109480.0,109470.0,1e-08]
[1761872416991,3.58229968,109480.0,109470.0,1e-08]
[1761872417194,3.61848196,109480.0,109470.0,1e-08]
[1761872417395,3.59799043,109480.0,109470.0,1e-08]
[1761872417601,3.5702231,109480.0,109470.0,1e-08]
[1761872418424,3.59799043,109480.0,109470.0,1e-08]
[1761872418627,3.69504043,109480.0,109470.0,1e-08]
[1761872418831,3.69404043,109480.0,109470.0,1e-08]
[1761872419238,4.69404043,109480.0,109470.0,1e-08]
[1761872419647,4.69504043,109480.0,109470.0,1e-08]
[1761872419846,4.69404043,109480.0,109470.0,1e-08]
[1761872420047,4.00012015,109480.0,109470.0,1e-08]
[1761872420254,4.69404043,109480.0,109470.0,1e-08]
[1761872420627,4.69504043,109480.0,109470.0,1e-08]
[1761872420809,4.69404043,109480.0,109470.0,1e-08]
[1761872421161,4.69504043,109480.0,109470.0,1e-08]
[1761872421492,4.69404043,109480.0,109470.0,1e-08]
[1761872421700,4.71553196,109480.0,109470.0,1e-08]
[1761872422137,4.71453196,109480.0,109470.0,1e-08]
[1761872422388,4.71553196,109480.0,109470.0,1e-08]
[1761872422908,2.61966751,109430.0,109420.0,1e-08]
[1761872423133,2.52278194,109420.0,109410.0,0.025]
[1761872423339,3.38803123,109420.0,109410.0,0.02720516]
[1761872424400,3.42421351,109420.0,109410.0,0.02720516]
[1761872425252,3.21592463,109420.0,109410.0,0.02720516]
[1761872425463,3.42421351,109420.0,109410.0,0.02720516]
[1761872428774,2.82011224,109420.0,109410.0,0.02720516]
[1761872428976,3.51403252,109420.0,109410.0,0.02720516]
[1761872430306,2.25573422,109420.0,109410.0,0.09247516]
[1761872431374,2.25573422,109420.0,109410.0,0.02720516]
[1761872431596,3.08421351,109420.0,109410.0,0.02720516]
[1761872432462,2.34555323,109420.0,109410.0,0.02720516]
[1761872432984,0.19075194,109420.0,109410.0,0.02720516]
[1761872433204,0.19075194,109420.0,109410.0,0.06409516]
[1761872433843,0.18278194,109420.0,109410.0,0.06399516]
[1761872434035,0.18278194,109420.0,109410.0,0.12112516]
[1761872434161,0.19075194,109420.0,109410.0,0.02710516]
[1761872434371,2.89264222,109420.0,109410.0,0.02710516]
[1761872434955,2.89264222,109420.0,109410.0,0.03551901]
[1761872435153,2.88467222,109420.0,109410.0,0.03551901]
[1761872435312,2.19075194,109420.0,109410.0,0.03551901]
[1761872435692,2.32472323,109420.0,109410.0,0.03551901]
[1761872435894,2.66472323,109420.0,109410.0,0.03551901]
[1761872436102,3.35864351,109420.0,109410.0,0.03551901]
[1761872436288,3.35067351,109420.0,109410.0,0.03551901]
[1761872436696,3.44846252,109420.0,109410.0,0.03551901]
[1761872436917,3.35864351,109420.0,109410.0,0.03551901]
[1761872438429,3.35864351,109420.0,109410.0,0.03521901]
[1761872438638,3.38641084,109420.0,109410.0,1e-08]
[1761872438850,3.40052456,109420.0,109410.0,1e-08]
[1761872439044,3.35864351,109420.0,109410.0,1e-08]
[1761872440287,3.37571798,109420.0,109410.0,1e-08]
[1761872440850,0.18283206,109390.0,109380.0,0.0004]
[1761872441053,0.18331344,109390.0,109380.0,0.05753]
[1761872441290,0.18331344,109390.0,109380.0,0.18490866]
[1761872441976,0.18331344,109390.0,109380.0,0.09508965]
[1761872443564,0.20282978,109400.0,109390.0,3.06527]
[1761872443565,0.01107135,109400.0,109390.0,3.06527]
[1761872443859,0.00060757,109420.0,109400.0,0.34]
[1761872444136,0.00060757,109420.0,109410.0,0.87656929]
[1761872446756,0.18338951,109420.0,109410.0,0.18264901]
[1761872449922,1.18338951,109420.0,109410.0,0.18264901]
[1761872450766,1.18328951,109420.0,109410.0,0.18264901]
[1761872463408,0.18279864,109410.0,109400.0,0.00022318]
[1761872463612,0.97000892,109410.0,109400.0,0.00866461]
[1761872465464,3.11781191,109410.0,109400.0,0.00866461]
[1761872465671,3.45781191,109410.0,109400.0,0.00866461]
[1761872467301,1.18328951,109420.0,109400.0,0.8852339]
[1761872467475,1.18328951,109420.0,109410.0,0.14408887]
[1761872467684,1.18328951,109420.0,109410.0,0.20092887]
[1761872467899,1.18328951,109420.0,109410.0,0.18264901]
[1761872471813,1.18528951,109420.0,109410.0,0.18264901]
[1761872473184,1.18528951,109420.0,109400.0,0.00022318]
[1761872473185,0.18279864,109410.0,109400.0,0.00022318]
[1761872473456,0.97000892,109410.0,109400.0,0.00022318]
[1761872473834,1.31000892,109410.0,109400.0,0.00022318]
[1761872474042,3.31000892,109410.0,109400.0,0.0086662]
[1761872475037,3.31200892,109410.0,109400.0,0.0086662]
[1761872475259,3.31000892,109410.0,109400.0,0.0086662]
[1761872475485,3.06823016,109410.0,109400.0,0.0086662]
[1761872475658,3.07023016,109410.0,109400.0,0.0086662]
[1761872476236,2.56186864,109410.0,109400.0,0.0444162]
[1761872476647,2.61279864,109410.0,109400.0,0.0086662]
[1761872476901,3.06494016,109410.0,109400.0,0.0086662]
[1761872479973,3.06418897,109410.0,109400.0,0.0086662]
[1761872480959,3.15400798,109410.0,109400.0,0.0086662]
[1761872481376,3.15400798,109410.0,109370.0,0.08298]
[1761872481377,0.18284878,109380.0,109370.0,0.08298]
[1761872481575,0.18284878,109380.0,109370.0,0.00088138]
[1761872481576,0.6686103,109380.0,109370.0,0.00088138]
[1761872481806,2.7195403,109380.0,109370.0,0.00088138]
[1761872481955,2.72896692,109380.0,109370.0,0.00165115]
[1761872482344,2.81878593,109380.0,109370.0,0.00165115]
[1761872482547,2.72896692,109380.0,109370.0,0.00165115]
[1761872482810,0.1828655,109370.0,109360.0,0.0004]
[1761872483007,2.83639747,109370.0,109360.0,0.0004]
[1761872483557,2.00048144,109370.0,109360.0,0.24721439]
[1761872483760,0.18283429,109390.0,109380.0,0.05527]
[1761872483968,0.18283429,109390.0,109380.0,0.13951075]
[1761872484169,0.18283429,109390.0,109380.0,0.19080075]
[1761872484371,0.29392429,109390.0,109380.0,0.00013174]
[1761872484579,0.24299429,109390.0,109380.0,0.00013174]
[1761872484818,2.24299429,109390.0,109380.0,0.03588174]
[1761872485030,2.24299429,109390.0,109380.0,0.00013174]
[1761872485376,2.24499429,109390.0,109380.0,0.00013174]
[1761872485579,0.18283429,109390.0,109380.0,0.08917174]
[1761872486188,0.18483429,109390.0,109380.0,0.08917174]
[1761872486402,0.18483206,109390.0,109380.0,0.63113227]
[1761872486602,0.002,109390.0,109380.0,1.00731455]
[1761872486744,0.002,109390.0,109380.0,1.19016333]
[1761872486944,0.002,109390.0,109380.0,1.19116333]
[1761872487147,1.19192103,109420.0,109380.0,1.22361997]
[1761872487352,1.19192103,109420.0,109410.0,0.06232]
[1761872487577,1.19192103,109420.0,109410.0,0.15213901]
[1761872487774,1.19192103,109420.0,109410.0,0.20542901]
[1761872488806,1.19392103,109420.0,109410.0,0.20542901]
[1761872489010,1.19192103,109420.0,109410.0,0.20542901]
[1761872489142,2.89985947,109390.0,109380.0,0.06062823]
[1761872489342,2.89985947,109390.0,109380.0,0.59755942]
[1761872489584,2.89985947,109390.0,109380.0,0.57927455]
[1761872490449,3.08269153,109390.0,109380.0,0.08995075]
[1761872490661,3.14305153,109390.0,109380.0,0.08995075]
[1761872490887,3.08469153,109390.0,109380.0,0.08995075]
[1761872491143,3.08269153,109390.0,109380.0,0.08995075]
[1761872491530,3.08469153,109390.0,109380.0,0.08995075]
[1761872491708,3.08269153,109390.0,109380.0,0.08995075]
[1761872492110,3.08469153,109390.0,109380.0,0.08995075]
[1761872492305,3.11831153,109390.0,109380.0,0.08995075]
[1761872493083,3.11831153,109390.0,109380.0,0.00013174]
[1761872493084,2.88856018,109390.0,109380.0,0.00013174]
[1761872493205,3.27949018,109390.0,109380.0,0.00013174]
[1761872493420,3.27949018,109390.0,109380.0,0.00858296]
[1761872495061,3.10104351,109390.0,109380.0,0.00858296]
[1761872495418,2.49366145,109390.0,109380.0,0.74225942]
[1761872495621,2.49366145,109390.0,109380.0,0.72497455]
[1761872495965,2.49366145,109390.0,109380.0,0.90782333]
[1761872496164,2.49366145,109390.0,109380.0,0.72497455]
[1761872496380,2.49166145,109390.0,109380.0,0.72497455]
[1761872497157,2.49366145,109390.0,109380.0,0.57927455]
[1761872497527,2.49166145,109390.0,109380.0,0.76212333]
[1761872497725,2.49366145,109390.0,109380.0,0.57927455]
[1761872498144,2.49366145,109390.0,109380.0,0.76212333]
[1761872498398,2.49366145,109390.0,109380.0,0.57927455]
[1761872499587,2.49366145,109390.0,109380.0,0.12613303]
[1761872500407,2.49366145,109390.0,109380.0,0.12713303]
[1761872500606,2.49166145,109390.0,109380.0,0.12713303]
[1761872500803,2.49266145,109390.0,109380.0,0.13913303]
[1761872501437,2.67549351,109390.0,109380.0,0.13913303]
[1761872501672,2.67549351,109390.0,109380.0,0.10195075]
[1761872501874,2.49266145,109390.0,109380.0,0.10195075]
[1761872502207,2.67549351,109390.0,109380.0,0.10195075]
[1761872505509,2.49342589,109390.0,109380.0,0.10195075]
[1761872508430,2.52931589,109390.0,109380.0,0.10195075]
[1761872508636,2.49342589,109390.0,109380.0,0.10195075]
[1761872510552,2.30157382,109390.0,109380.0,0.10195075]
[1761872510988,2.36387382,109390.0,109380.0,0.10195075]
[1761872511452,2.30157382,109390.0,109380.0,0.10195075]
[1761872514858,2.11874176,109390.0,109380.0,1.1324082]
[1761872515059,2.11874176,109390.0,109380.0,1.13846547]
[1761872515399,2.11874176,109390.0,109380.0,1.17090067]
[1761872517464,2.11874176,109390.0,109380.0,1.13846547]
[1761872518420,2.11874176,109390.0,109380.0,1.17090067]
[1761872519478,2.11874176,109390.0,109380.0,1.13846547]
[1761872519851,2.11874176,109390.0,109380.0,1.17090067]
[1761872520344,2.11874176,109390.0,109380.0,0.98805189]
[1761872520540,2.11874176,109390.0,109380.0,1.14655853]
[1761872525813,2.11874176,109390.0,109380.0,1.29225853]
[1761872526161,2.11874176,109390.0,109380.0,0.84011701]
[1761872526363,2.11874176,109390.0,109380.0,1.29225853]
[1761872527682,2.11874176,109390.0,109380.0,0.86448417]
[1761872527908,2.11874176,109390.0,109380.0,1.31662569]
[1761872530317,2.11874176,109390.0,109380.0,1.32662568]
[1761872530904,2.11767188,109390.0,109380.0,1.32662568]
[1761872531498,2.11767188,109390.0,109380.0,0.61301791]
[1761872531709,1.93626965,109390.0,109380.0,0.61301791]
[1761872531910,1.93626965,109390.0,109380.0,0.64920019]
[1761872532110,1.93626965,109390.0,109380.0,0.30920019]
[1761872532534,1.93826965,109390.0,109380.0,0.32720019]
[1761872535013,2.12110171,109390.0,109380.0,0.32720019]
[1761872535441,1.93826965,109390.0,109380.0,0.32720019]
[1761872535602,2.12110171,109390.0,109380.0,0.32720019]
[1761872535950,1.93826965,109390.0,109380.0,0.32620019]
[1761872536107,1.93826965,109390.0,109380.0,0.32720019]
[1761872540822,2.12110171,109390.0,109380.0,0.32720019]
[1761872541188,2.12110171,109390.0,109380.0,0.33526823]
[1761872541383,1.93826965,109390.0,109380.0,0.33526823]
[1761872541793,1.93826965,109390.0,109380.0,0.38396447]
[1761872543372,1.93826965,109390.0,109380.0,0.35152927]
[1761872546112,2.18077171,109390.0,109380.0,0.29818703]
[1761872546325,2.18077171,109390.0,109380.0,0.32259228]
[1761872546558,2.18077171,109390.0,109380.0,0.290056]
[1761872546768,2.18066264,109390.0,109380.0,0.290056]
[1761872547452,2.12099264,109390.0,109380.0,0.290056]
[1761872547662,1.93816058,109390.0,109380.0,1.02984159]
[1761872547873,1.93816058,109390.0,109380.0,1.04600155]
[1761872548512,1.93816058,109390.0,109380.0,0.35152927]
[1761872549602,2.12099264,109390.0,109380.0,0.35152927]
[1761872549818,1.93816058,109390.0,109380.0,0.35152927]
[1761872550146,2.12099264,109390.0,109380.0,0.35152927]
[1761872550623,2.12099264,109390.0,109380.0,0.35052927]
[1761872550846,2.12099264,109390.0,109380.0,0.35152927]
[1761872551932,1.73336057,109390.0,109380.0,0.33536404]
[1761872552126,1.91619263,109390.0,109380.0,0.33536404]
[1761872552554,1.91619263,109390.0,109380.0,0.35976367]
[1761872552805,1.73336057,109390.0,109380.0,0.35976367]
[1761872553215,1.73336057,109390.0,109380.0,0.35876367]
[1761872553442,1.73336057,109390.0,109380.0,0.35976367]
[1761872553668,1.73336057,109390.0,109380.0,0.33436404]
[1761872553881,1.73336057,109390.0,109380.0,0.18966404]
[1761872557480,1.73336057,109390.0,109380.0,0.58737003]
[1761872560249,1.91619263,109390.0,109380.0,0.58737003]
[1761872560876,2.37356862,109390.0,109380.0,0.15248176]
[1761872561086,1.97586263,109390.0,109380.0,0.1443525]
[1761872561678,1.91619263,109390.0,109380.0,0.1443525]
[1761872561885,1.91619263,109390.0,109380.0,0.17688351]
[1761872562317,1.91619263,109390.0,109380.0,0.17788351]
[1761872562764,1.91619263,109390.0,109380.0,0.17688351]
[1761872563176,1.97586263,109390.0,109380.0,0.17688351]
[1761872563374,1.97586263,109390.0,109380.0,0.1443525]
[1761872566174,1.75977714,109390.0,109380.0,0.1443525]
[1761872567253,1.75977714,109390.0,109380.0,0.11995075]
[1761872567471,1.75977714,109390.0,109380.0,0.1443525]
[1761872567686,1.44716964,109390.0,109380.0,4.92478639]
[1761872567892,1.44716964,109390.0,109380.0,4.942796]
[1761872568104,1.44716964,109390.0,109380.0,4.89409976]
[1761872568310,1.44716964,109390.0,109380.0,4.94284848]
[1761872568718,1.44716964,109390.0,109380.0,4.49639377]
[1761872568924,1.44416964,109390.0,109380.0,4.46639377]